bitfinex-derivatives/quotes_BTCF0:USTF0_20241130
["timestamp","ask_amount","ask_price","bid_price","bid_amount"]
[1732998626679,0.414316,97002.0,97001.0,0.05783735]
[1732998628070,0.414316,97002.0,97001.0,0.05783734]
[1732998628371,0.414316,97002.0,97001.0,0.04301503]
[1732998628587,0.414316,97002.0,97001.0,0.05783735]
[1732998629271,0.414316,97002.0,97001.0,0.05783698]
[1732998629477,0.053516,97002.0,97001.0,0.05783698]
[1732998630969,0.053516,97002.0,97001.0,0.0578362]
[1732998639489,0.053516,97002.0,97001.0,0.05139221]
[1732998640479,0.053516,97002.0,97001.0,0.10290921]
[1732998641192,0.053516,97002.0,97001.0,0.07180921]
[1732998641988,0.053516,97002.0,97001.0,0.02029221]
[1732998646489,0.053516,97002.0,97001.0,0.02673641]
[1732998652493,0.053516,97002.0,97001.0,0.02029221]
[1732998652888,0.053516,97002.0,97001.0,0.01513702]
[1732998653092,0.053516,97002.0,97001.0,0.01191503]
[1732998653297,0.053516,97002.0,97001.0,0.01482166]
[1732998654997,0.053516,97002.0,97001.0,0.00837746]
[1732998657796,0.053516,97002.0,97001.0,0.00837736]
[1732998658385,0.053516,97002.0,97001.0,0.01482146]
[1732998658695,0.053516,97002.0,97001.0,0.00837736]
[1732998659987,0.053516,97002.0,97001.0,0.01482142]
[1732998660386,0.053516,97002.0,97001.0,0.00837736]
[1732998661299,0.051517,97001.0,97000.0,0.11262145]
[1732998661494,0.051517,97001.0,97000.0,0.12744283]
[1732998662687,0.083217,97001.0,97000.0,0.12744283]
[1732998664295,0.084217,97001.0,97000.0,0.12744283]
[1732998665294,0.002,97001.0,97000.0,0.17896083]
[1732998665705,0.002,97001.0,97000.0,0.53976083]
[1732998666200,0.002,97001.0,97000.0,0.59904298]
[1732998667497,0.002,97001.0,97000.0,0.63124298]
[1732998669106,0.002,97001.0,97000.0,0.60546813]
[1732998670603,0.002,97001.0,97000.0,0.56873879]
[1732998670815,0.002,97001.0,97000.0,0.60546578]
[1732998672316,0.053517,97001.0,97000.0,0.60546578]
[1732998672501,0.053517,97001.0,97000.0,0.57195952]
[1732998673711,0.002,97001.0,97000.0,0.57195952]
[1732998674509,0.053517,97001.0,97000.0,0.53975952]
[1732998674907,0.053517,97001.0,97000.0,0.53976028]
[1732998675510,0.053517,97001.0,97000.0,0.56037915]
[1732998675817,0.053517,97001.0,97000.0,0.60952228]
[1732998676020,0.053517,97001.0,97000.0,0.24872228]
[1732998676419,0.053517,97001.0,97000.0,0.12744228]
[1732998677817,0.053517,97001.0,97000.0,0.12744281]
[1732998683014,0.053517,97001.0,97000.0,0.12826544]
[1732998683217,0.053517,97001.0,97000.0,0.12744281]
[1732998684720,0.053517,97001.0,97000.0,0.11262145]
[1732998684919,0.053517,97001.0,97000.0,0.12744281]
[1732998688720,0.053517,97001.0,97000.0,0.1274428]
[1732998694622,0.053517,97001.0,97000.0,0.12826571]
[1732998694820,0.053517,97001.0,97000.0,0.1274428]
[1732998695533,0.053517,97001.0,97000.0,0.12826571]
[1732998696530,0.053517,97001.0,97000.0,0.1274428]
[1732998696923,0.053517,97001.0,97000.0,0.1789608]
[1732998698031,0.053517,97001.0,97000.0,0.17978407]
[1732998698533,0.053517,97001.0,97000.0,0.1789608]
[1732998698737,0.053517,97001.0,97000.0,0.17978407]
[1732998700230,0.053517,97001.0,97000.0,0.1789608]
[1732998701837,0.053517,97001.0,97000.0,0.17978428]
[1732998702233,0.053517,97001.0,97000.0,0.1797844]
[1732998703233,0.053517,97001.0,97000.0,0.1789608]
[1732998703435,0.053517,97001.0,97000.0,0.17978447]
[1732998703629,0.053517,97001.0,97000.0,0.1789608]
[1732998704334,0.053517,97001.0,97000.0,0.17978419]
[1732998704540,0.053517,97001.0,97000.0,0.1789608]
[1732998707330,0.053517,97001.0,97000.0,0.1274428]
[1732998709834,0.053517,97001.0,97000.0,0.1274429]
[1732998711538,0.053517,97001.0,97000.0,0.1789609]
[1732998712041,0.002,97001.0,97000.0,0.1789609]
[1732998712431,0.0861183,97001.0,97000.0,0.1789609]
[1732998712837,0.1376353,97001.0,97000.0,0.1789609]
[1732998713042,0.053517,97001.0,97000.0,0.1789609]
[1732998714146,0.053517,97001.0,97000.0,0.16413945]
[1732998716036,0.053517,97001.0,97000.0,0.17896113]
[1732998716945,0.053517,97001.0,97000.0,0.16413945]
[1732998717240,0.053517,97001.0,97000.0,0.17896117]
[1732998717844,0.002,97001.0,97000.0,0.17896117]
[1732998723043,0.002,97001.0,97000.0,0.17896057]
[1732998723649,0.002,97001.0,97000.0,0.53976057]
[1732998724652,0.002,97001.0,97000.0,0.6545966]
[1732998725353,0.002,97001.0,97000.0,0.65459662]
[1732998727749,0.002,97001.0,97000.0,0.66104057]
[1732998728946,0.002,97001.0,97000.0,0.66104032]
[1732998730350,0.002,97001.0,97000.0,0.68166057]
[1732998732442,0.002,97001.0,97000.0,0.3060397]
[1732998732646,0.002,97001.0,97000.0,0.31119491]
[1732998732853,0.002,97001.0,97000.0,0.32086094]
[1732998734143,0.08652181,97001.0,97000.0,0.32086094]
[1732998734551,0.002,97001.0,97000.0,0.32086094]
[1732998736053,0.002,97001.0,97000.0,0.30926171]
[1732998736253,0.002,97001.0,97000.0,0.32086122]
[1732998737357,0.002,97001.0,97000.0,0.31441708]
[1732998739356,0.002,97001.0,97000.0,0.32086109]
[1732998739562,0.002,97001.0,97000.0,0.32086111]
[1732998739953,0.002,97001.0,97000.0,0.31570564]
[1732998740261,0.002,97001.0,97000.0,0.3208608]
[1732998742153,0.002,97001.0,97000.0,0.19958092]
[1732998742353,0.053517,97001.0,97000.0,0.19313684]
[1732998742557,0.053517,97001.0,97000.0,0.31441684]
[1732998744158,0.053517,97001.0,97000.0,0.32086098]
[1732998744159,0.002,97001.0,97000.0,0.32086098]
[1732998749365,0.21812722,97001.0,97000.0,0.32086098]
[1732998749960,0.002,97001.0,97000.0,0.32086098]
[1732998750665,0.08863076,97001.0,97000.0,0.32086098]
[1732998751070,0.2181354,97001.0,97000.0,0.32086098]
[1732998751972,0.002,97001.0,97000.0,0.32086098]
[1732998752273,0.21812839,97001.0,97000.0,0.32086098]
[1732998753167,0.002,97001.0,97000.0,0.32086098]
[1732998756770,0.002,97001.0,97000.0,0.32168443]
[1732998757664,0.002,97001.0,97000.0,0.32086098]
[1732998757865,0.002,97001.0,97000.0,0.56516936]
[1732998758168,0.002,97001.0,97000.0,0.38014261]
[1732998758671,0.002,97001.0,97000.0,0.56516936]
[1732998759383,0.002,97001.0,97000.0,0.38096573]
[1732998759674,0.002,97001.0,97000.0,0.38014261]
[1732998761270,0.002,97001.0,97000.0,0.38014189]
[1732998761467,0.002,97001.0,97000.0,0.35436758]
[1732998761868,0.002,97001.0,97000.0,0.71516758]
[1732998762362,0.002,97001.0,97000.0,0.74094189]
[1732998764268,0.002,97001.0,97000.0,0.71516758]
[1732998767878,0.002,97001.0,97000.0,0.74094087]
[1732998768468,0.002,97001.0,97000.0,0.71516659]
[1732998768671,0.002,97001.0,97000.0,0.68165993]
[1732998768875,0.002,97001.0,97000.0,0.74094091]
[1732998769873,0.002,97001.0,97000.0,0.38014091]
[1732998770080,0.002,97001.0,97000.0,0.74094091]
[1732998772572,0.002,97001.0,97000.0,0.68165993]
[1732998772787,0.002,97001.0,97000.0,0.74094091]
[1732998774383,0.002,97001.0,97000.0,0.74146091]
[1732998775969,0.002,97001.0,97000.0,0.67702507]
[1732998776284,0.002,97001.0,97000.0,0.67380328]
[1732998776582,0.002,97001.0,97000.0,0.6673597]
[1732998776973,0.002,97001.0,97000.0,0.72664068]
[1732998777182,0.002,97001.0,97000.0,0.53975968]
[1732998777378,0.002,97001.0,97000.0,0.12744168]
[1732998777585,0.0656,97001.0,97000.0,0.02764168]
[1732998778280,0.0656,97001.0,97000.0,0.01512663]
[1732998778486,0.15251964,97001.0,97000.0,0.01512663]
[1732998778677,0.0656,97001.0,97000.0,0.01512663]
[1732998780982,0.051523,96989.0,96975.0,0.07214262]
[1732998781182,0.051523,96989.0,96975.0,0.19338262]
[1732998781982,0.051523,96989.0,96984.0,8.143e-05]
[1732998782483,0.052523,96989.0,96984.0,8.143e-05]
[1732998782881,0.053523,96989.0,96984.0,8.143e-05]
[1732998787578,0.051526,96985.0,96984.0,8.143e-05]
[1732998788695,0.051526,96985.0,96959.0,0.02061162]
[1732998788696,0.051539,96961.0,96959.0,0.19343062]
[1732998789386,0.051539,96961.0,96959.0,0.14189162]
[1732998789584,0.051539,96961.0,96960.0,9.498e-05]
[1732998790276,0.052539,96961.0,96960.0,9.498e-05]
[1732998790677,0.053539,96961.0,96960.0,9.498e-05]
[1732998797889,0.053539,96961.0,96960.0,0.00331849]
[1732998800293,0.052539,96961.0,96960.0,0.00847613]
[1732998800598,0.053539,96961.0,96960.0,0.00847613]
[1732998800891,0.052539,96961.0,96960.0,0.00847636]
[1732998801082,0.053539,96961.0,96960.0,0.00847636]
[1732998802190,0.053539,96961.0,96960.0,0.01492331]
[1732998802994,0.053539,96961.0,96960.0,0.12826231]
[1732998803982,0.053539,96961.0,96960.0,0.07672331]
[1732998805694,0.053539,96961.0,96960.0,0.04642331]
[1732998805892,0.053539,96961.0,96960.0,0.03159498]
[1732998806093,0.053539,96961.0,96960.0,0.04724443]
[1732998806391,0.053539,96961.0,96960.0,0.04642268]
[1732998810695,0.053539,96961.0,96960.0,0.04642267]
[1732998811591,0.053539,96961.0,96960.0,0.04642259]
[1732998813798,0.053539,96961.0,96960.0,0.09796159]
[1732998816003,0.053539,96961.0,96960.0,0.04642259]
[1732998816210,0.053539,96961.0,96960.0,0.04724562]
[1732998816903,0.053539,96961.0,96960.0,0.04642259]
[1732998817101,0.053539,96961.0,96960.0,0.04724562]
[1732998817501,0.053539,96961.0,96960.0,0.04642259]
[1732998819299,0.053539,96961.0,96960.0,0.01492259]
[1732998821301,0.053539,96961.0,96960.0,0.01574658]
[1732998821707,0.053539,96961.0,96960.0,0.06728558]
[1732998822008,0.053539,96961.0,96960.0,0.06646159]
[1732998823300,0.053539,96961.0,96960.0,0.06728561]
[1732998823902,0.053539,96961.0,96960.0,0.06646159]
[1732998824302,0.26868809,96961.0,96960.0,0.06646159]
[1732998826312,0.053539,96961.0,96960.0,0.06646159]
[1732998826509,0.053539,96961.0,96960.0,0.0600148]
[1732998826704,0.053539,96961.0,96960.0,0.06646159]
[1732998827607,0.14200571,96961.0,96960.0,0.06646159]
[1732998829809,0.053539,96961.0,96960.0,0.01492259]
[1732998830012,0.053539,96961.0,96960.0,0.01492267]
[1732998833522,0.053539,96961.0,96960.0,0.01492273]
[1732998837018,0.14188649,96961.0,96960.0,0.01492273]
[1732998837227,0.14188649,96961.0,96960.0,9.498e-05]
[1732998837419,0.14188649,96961.0,96960.0,0.01492268]
[1732998838622,0.30052824,96961.0,96960.0,0.01492268]
[1732998838821,0.38887573,96961.0,96960.0,0.01492268]
[1732998840320,0.14188649,96961.0,96960.0,0.01492268]
[1732998841528,0.14188649,96961.0,96960.0,0.01492273]
[1732998842220,0.14188649,96961.0,96960.0,0.01492277]
[1732998844128,0.30052824,96961.0,96960.0,0.01492277]
[1732998844332,0.38887573,96961.0,96960.0,0.01492277]
[1732998844724,0.053539,96961.0,96960.0,0.01492277]
[1732998846728,0.26961927,96961.0,96960.0,0.01492277]
[1732998846937,0.053539,96961.0,96960.0,0.01492277]
[1732998848029,0.05364552,96961.0,96960.0,0.01492277]
[1732998848435,0.26972579,96961.0,96960.0,0.01492277]
[1732998848625,0.26872579,96961.0,96960.0,0.01492277]
[1732998848825,0.26972579,96961.0,96960.0,0.01492277]
[1732998849027,0.05364552,96961.0,96960.0,0.01492277]
[1732998849427,0.26967977,96961.0,96960.0,0.01492277]
[1732998850329,0.26967977,96961.0,96960.0,0.0084759]
[1732998850530,0.05364552,96961.0,96960.0,0.0084759]
[1732998850935,0.1417697,96961.0,96960.0,0.00331841]
[1732998851234,0.1417697,96961.0,96960.0,9.498e-05]
[1732998851235,0.38875894,96961.0,96960.0,9.498e-05]
[1732998851435,0.1417697,96961.0,96960.0,9.498e-05]
[1732998851732,0.24208355,96961.0,96960.0,0.00331868]
[1732998852628,0.24206692,96961.0,96960.0,0.00331868]
[1732998853534,0.1417697,96961.0,96960.0,0.00331874]
[1732998853732,0.38849,96961.0,96960.0,0.00331874]
[1732998853936,0.1417697,96961.0,96960.0,0.00331874]
[1732998854339,0.30034935,96961.0,96960.0,0.00331874]
[1732998854534,0.38845555,96961.0,96960.0,0.00331874]
[1732998854930,0.38845555,96961.0,96960.0,0.00331875]
[1732998855531,0.14175172,96961.0,96960.0,0.00331875]
[1732998856230,0.14175172,96961.0,96960.0,9.498e-05]
[1732998856735,0.14175172,96961.0,96960.0,0.00331874]
[1732998856933,0.14175172,96961.0,96960.0,9.498e-05]
[1732998858235,0.14175172,96961.0,96960.0,0.00331876]
[1732998859846,0.05364552,96961.0,96960.0,0.00331876]
[1732998863054,0.17496552,96961.0,96960.0,0.00331876]
[1732998865355,0.17496552,96961.0,96960.0,9.498e-05]
[1732998868760,0.17496552,96961.0,96960.0,0.00331881]
[1732998869150,0.05364552,96961.0,96960.0,0.00331881]
[1732998869355,0.05364552,96961.0,96960.0,9.498e-05]
[1732998869356,0.17496552,96961.0,96960.0,9.498e-05]
[1732998870256,0.39076598,96961.0,96960.0,9.498e-05]
[1732998870448,0.39076598,96961.0,96960.0,0.00331866]
[1732998870449,0.05364552,96961.0,96960.0,0.00331866]
[1732998872455,0.05364552,96961.0,96960.0,0.00847626]
[1732998872856,0.05364552,96961.0,96960.0,9.498e-05]
[1732998873055,0.05364552,96961.0,96960.0,0.00847608]
[1732998875564,0.2695261,96961.0,96960.0,0.00847608]
[1732998876367,0.05364552,96961.0,96960.0,0.00847608]
[1732998878652,0.14212336,96961.0,96960.0,0.00847608]
[1732998879556,0.30043909,96961.0,96960.0,0.00847608]
[1732998879756,0.38891693,96961.0,96960.0,0.00847608]
[1732998879957,0.14212336,96961.0,96960.0,0.00847608]
[1732998880462,0.3004535,96961.0,96960.0,0.00331848]
[1732998880659,0.14212336,96961.0,96960.0,0.00331848]
[1732998881160,0.14208943,96961.0,96960.0,0.00331848]
[1732998881757,0.05364552,96961.0,96960.0,0.00331848]
[1732998886463,0.06587024,96961.0,96960.0,0.00331848]
[1732998887069,0.05364552,96961.0,96960.0,0.00331848]
[1732998887572,0.05364552,96961.0,96960.0,0.00847633]
[1732998890966,0.05364552,96961.0,96960.0,0.00847647]
[1732998893266,0.26961222,96961.0,96960.0,0.00847647]
[1732998893875,0.14212081,96961.0,96960.0,0.00847647]
[1732998895469,0.26956901,96961.0,96960.0,0.00847647]
[1732998896963,0.14210601,96961.0,96960.0,0.00847647]
[1732998900876,0.05364552,96961.0,96960.0,0.00847647]
[1732998901067,0.24376533,96961.0,96960.0,0.00847647]
[1732998901266,0.24376533,96961.0,96960.0,9.498e-05]
[1732998902271,0.14210601,96961.0,96960.0,9.498e-05]
[1732998902463,0.14210601,96961.0,96960.0,0.00847665]
[1732998902973,0.30046286,96961.0,96960.0,0.00847665]
[1732998903278,0.14210601,96961.0,96960.0,0.00847665]
[1732998904767,0.26374601,96961.0,96960.0,0.00847665]
[1732998904973,0.17528552,96961.0,96960.0,0.00847665]
[1732998905684,0.05364552,96961.0,96960.0,0.0084764]
[1732998905979,0.05364552,96961.0,96960.0,9.498e-05]
[1732998906174,0.05364552,96961.0,96960.0,0.0084764]
[1732998907369,0.14538873,96961.0,96960.0,0.0084764]
[1732998908273,0.26963966,96961.0,96960.0,0.0084764]
[1732998908875,0.05364552,96961.0,96960.0,0.0084764]
[1732998910477,0.05364552,96961.0,96960.0,0.0149236]
[1732998911875,0.30046286,96961.0,96960.0,0.0149236]
[1732998912076,0.39214886,96961.0,96960.0,0.0149236]
[1732998912377,0.24973227,96961.0,96960.0,0.0149236]
[1732998912579,0.33131606,96961.0,96960.0,0.0149236]
[1732998912772,0.24973227,96961.0,96960.0,0.0149236]
[1732998913870,0.52740281,96961.0,96960.0,0.0149236]
[1732998915278,0.24973227,96961.0,96960.0,0.0149236]
[1732998915581,0.14533152,96961.0,96960.0,0.0149236]
[1732998916180,0.30045988,96961.0,96960.0,0.0149236]
[1732998916678,0.14533423,96961.0,96960.0,0.0149236]
[1732998919983,0.05364552,96961.0,96960.0,0.0149236]
[1732998920182,0.00210652,96961.0,96960.0,0.0664626]
[1732998921986,0.21593718,96972.0,96960.0,0.0153396]
[1732998922280,0.051532,96973.0,96972.0,0.051532]
[1732998922482,0.051532,96973.0,96972.0,0.06636062]
[1732998923077,0.05164063,96973.0,96972.0,0.06636062]
[1732998923478,0.05164063,96973.0,96972.0,0.06635794]
[1732998923688,0.05164063,96973.0,96972.0,0.01482594]
[1732998924178,0.05264063,96973.0,96972.0,0.01482594]
[1732998924585,0.05364063,96973.0,96972.0,0.01482594]
[1732998925190,0.05364063,96973.0,96972.0,0.00837988]
[1732998925382,0.05364063,96973.0,96960.0,9.498e-05]
[1732998925581,0.051538,96961.0,96960.0,9.498e-05]
[1732998925777,0.051538,96961.0,96960.0,0.00847587]
[1732998926481,0.051538,96961.0,96960.0,0.01047587]
[1732998926785,0.051538,96961.0,96960.0,0.00725245]
[1732998926977,0.14283078,96961.0,96960.0,0.00531852]
[1732998927283,0.14283078,96961.0,96960.0,0.00331852]
[1732998927586,0.14483078,96961.0,96960.0,0.00531852]
[1732998933488,0.14483078,96961.0,96960.0,0.01047637]
[1732998933691,0.26659078,96961.0,96960.0,0.01047637]
[1732998933884,0.26659078,96961.0,96960.0,0.01047648]
[1732998934079,0.14483078,96961.0,96960.0,0.01047648]
[1732998934983,0.053538,96961.0,96960.0,0.01047648]
[1732998936880,0.053538,96961.0,96960.0,0.00209498]
[1732998937085,0.053538,96961.0,96960.0,0.01047648]
[1732998942087,0.14531611,96961.0,96960.0,0.01047648]
[1732998942489,0.14531611,96961.0,96960.0,0.00531863]
[1732998944901,0.26711611,96961.0,96960.0,0.00531863]
[1732998947606,0.26711611,96961.0,96960.0,0.01047645]
[1732998947904,0.26711611,96961.0,96960.0,0.00531863]
[1732998948712,0.26711611,96961.0,96960.0,0.01047648]
[1732998949205,0.51364095,96961.0,96960.0,0.01047648]
[1732998949802,0.26711611,96961.0,96960.0,0.01047648]
[1732998950005,0.175338,96961.0,96960.0,0.01047648]
[1732998954303,0.39104536,96961.0,96960.0,0.01047648]
[1732998954802,0.26924536,96961.0,96960.0,0.01047648]
[1732998955005,0.39104536,96961.0,96960.0,0.01047648]
[1732998955409,0.175338,96961.0,96960.0,0.01047666]
[1732998955607,0.39131816,96961.0,96960.0,0.01047666]
[1732998956406,0.26705857,96961.0,96960.0,0.01047666]
[1732998957298,0.62785857,96961.0,96960.0,0.01047666]
[1732998958906,0.62785857,96961.0,96960.0,0.01047663]
[1732998960309,0.87438341,96961.0,96960.0,0.01047663]
[1732998960499,0.87474732,96961.0,96960.0,0.01047663]
[1732998961804,0.87415016,96961.0,96960.0,0.01047663]
[1732998962410,0.87367016,96961.0,96960.0,0.01047663]
[1732998964208,0.87367016,96961.0,96960.0,0.00209498]
[1732998964606,0.62678141,96961.0,96960.0,0.00209498]
[1732998964911,0.62678141,96961.0,96960.0,0.0104767]
[1732998965116,0.73072277,96961.0,96960.0,0.0104767]
[1732998967115,0.63964337,96961.0,96960.0,0.0104767]
[1732998967305,0.73096207,96961.0,96960.0,0.0104767]
[1732998967511,0.6269767,96961.0,96960.0,0.0104767]
[1732998969508,0.6269767,96961.0,96960.0,0.01047671]
[1732998969713,0.6269767,96961.0,96960.0,0.00209498]
[1732998969915,0.6269767,96961.0,96960.0,0.01047671]
[1732998972312,0.62694262,96961.0,96960.0,0.00531872]
[1732998972913,0.26614262,96961.0,96960.0,0.00531872]
[1732998973115,0.26614262,96961.0,96960.0,0.01047665]
[1732998973423,0.26614262,96961.0,96960.0,0.00531872]
[1732998976509,0.26614262,96961.0,96960.0,0.00531869]
[1732998978214,0.26614262,96961.0,96960.0,0.01047669]
[1732998980118,0.26614262,96961.0,96960.0,0.01047673]
[1732998982721,0.26588765,96961.0,96960.0,0.01047673]
[1732998983721,0.26588765,96961.0,96960.0,0.01047671]
[1732998984626,0.14456765,96961.0,96960.0,0.01047671]
[1732998987023,0.24834924,96961.0,96960.0,0.01047671]
[1732998987931,0.24845245,96961.0,96960.0,0.01047671]
[1732998989225,0.24845245,96961.0,96960.0,0.01047691]
[1732998989526,0.24845245,96961.0,96960.0,0.0053188]
[1732998990731,0.60925245,96961.0,96960.0,0.0053188]
[1732998992222,0.50547453,96961.0,96960.0,0.01047691]
[1732998993437,0.50547453,96961.0,96960.0,0.0053188]
[1732998993824,0.053538,96961.0,96960.0,0.0053188]
[1732998994030,0.002,96961.0,96960.0,0.0053188]
[1732998994237,0.24689223,96961.0,96960.0,0.0053188]
[1732998994532,0.29842923,96964.0,96960.0,0.01047574]
[1732998994722,0.051537,96963.0,96961.0,0.00838076]
[1732998994929,0.051537,96963.0,96962.0,0.00838076]
[1732998996334,0.052537,96963.0,96962.0,0.00938076]
[1732998997431,0.053537,96963.0,96962.0,0.01138076]
[1732999000835,0.053537,96963.0,96962.0,0.02358521]
[1732999001035,0.053537,96963.0,96962.0,0.01138076]
[1732999001740,0.053537,96963.0,96962.0,0.01138075]
[1732999005144,0.053537,96963.0,96962.0,0.01138084]
[1732999005145,0.26949494,96963.0,96962.0,0.01138084]
[1732999005537,0.26949494,96963.0,96962.0,0.02333472]
[1732999005538,0.053537,96963.0,96962.0,0.02333472]
[1732999005746,0.053537,96963.0,96962.0,0.01138084]
[1732999010447,0.053537,96963.0,96962.0,0.0062234]
[1732999015545,0.053537,96963.0,96962.0,0.01138087]
[1732999019554,0.26949494,96963.0,96962.0,0.01138094]
[1732999020752,0.14175053,96963.0,96962.0,0.01138094]
[1732999021850,0.14175053,96963.0,96962.0,0.003]
[1732999022046,0.14175053,96963.0,96962.0,0.01138094]
[1732999022254,0.14175053,96963.0,96962.0,0.003]
[1732999022558,0.14175053,96963.0,96962.0,0.01138093]
[1732999022853,0.14175053,96963.0,96962.0,0.0178278]
[1732999022854,0.30034607,96963.0,96962.0,0.0178278]
[1732999023057,0.30039698,96963.0,96962.0,0.0178278]
[1732999023260,0.14175053,96963.0,96962.0,0.01782779]
[1732999023560,0.14175053,96963.0,96962.0,0.01138093]
[1732999024345,0.053537,96963.0,96962.0,0.01138093]
[1732999024857,0.053537,96963.0,96962.0,0.003]
[1732999025055,0.053537,96963.0,96962.0,0.0081575]
[1732999025256,0.053537,96963.0,96962.0,0.01138094]
[1732999026353,0.053537,96963.0,96962.0,0.0081575]
[1732999026854,0.053537,96963.0,96962.0,0.003]
[1732999027059,0.053537,96963.0,96962.0,0.01138094]
[1732999030048,0.26961351,96963.0,96962.0,0.01138094]
[1732999030552,0.26961351,96963.0,96962.0,0.01138095]
[1732999031559,0.053537,96963.0,96962.0,0.01138095]
[1732999032351,0.14159281,96963.0,96962.0,0.01138095]
[1732999034261,0.14120469,96963.0,96962.0,0.01138095]
[1732999039372,0.053537,96963.0,96962.0,0.01138095]
[1732999041370,0.053537,96963.0,96962.0,0.003]
[1732999041371,0.26967625,96963.0,96962.0,0.003]
[1732999041571,0.26967625,96963.0,96962.0,0.01138116]
[1732999042172,0.053537,96963.0,96962.0,0.01138116]
[1732999042564,0.14169986,96963.0,96962.0,0.01138116]
[1732999042973,0.26970547,96963.0,96962.0,0.01138116]
[1732999043982,0.053537,96963.0,96962.0,0.01138116]
[1732999045580,0.26970547,96963.0,96962.0,0.01138116]
[1732999047480,0.053537,96963.0,96962.0,0.01138116]
[1732999048179,0.053537,96963.0,96962.0,0.00815764]
[1732999048482,0.053537,96963.0,96962.0,0.01138116]
[1732999048483,0.26970547,96963.0,96962.0,0.01138116]
[1732999050278,0.053537,96963.0,96962.0,0.01138116]
[1732999050883,0.1423014,96963.0,96962.0,0.01138116]
[1732999053179,0.053537,96963.0,96962.0,0.01138116]
[1732999053578,0.053537,96963.0,96962.0,0.01782821]
[1732999054778,0.14235234,96963.0,96962.0,0.01782821]
[1732999055198,0.14235258,96963.0,96962.0,0.01782821]
[1732999057280,0.1547434,96963.0,96962.0,0.01782821]
[1732999057480,0.14235258,96963.0,96962.0,0.01782821]
[1732999058585,0.14235258,96963.0,96962.0,0.01138116]
[1732999058792,0.14235258,96963.0,96962.0,0.01782821]
[1732999060690,0.14235258,96963.0,96962.0,0.01138116]
[1732999062586,0.26975962,96963.0,96962.0,0.01138116]
[1732999063482,0.053537,96963.0,96962.0,0.01138116]
[1732999065988,0.053537,96963.0,96962.0,0.003]
[1732999066189,0.053537,96963.0,96962.0,0.01138116]
[1732999067688,0.053537,96963.0,96962.0,0.0178282]
[1732999069495,0.14329058,96963.0,96962.0,0.01782819]
[1732999070600,0.053537,96963.0,96962.0,0.01782819]
[1732999070987,0.14313808,96963.0,96962.0,0.01782819]
[1732999073889,0.053537,96963.0,96962.0,0.01782819]
[1732999074691,0.053537,96963.0,96962.0,0.06936619]
[1732999077600,0.30064857,96963.0,96962.0,0.06936619]
[1732999077800,0.39025242,96963.0,96962.0,0.06936619]
[1732999078000,0.33871542,96963.0,96958.0,0.12128]
[1732999078200,0.3608,96959.0,96958.0,0.17282]
[1732999078503,0.45040385,96959.0,96958.0,0.17282]
[1732999078896,0.3608,96959.0,96958.0,0.17282]
[1732999079098,0.3608,96959.0,96958.0,0.17491636]
[1732999080095,0.21616475,96961.0,96958.0,0.17491636]
[1732999080300,0.002,96963.0,96958.0,0.17491636]
[1732999080301,0.001,96959.0,96958.0,0.17491636]
[1732999080896,0.002,96959.0,96958.0,0.24614093]
[1732999082206,0.001,96959.0,96958.0,0.24413841]
[1732999083006,0.002,96959.0,96958.0,0.24413841]
[1732999084294,0.002,96959.0,96958.0,0.2183537]
[1732999086205,0.002,96959.0,96958.0,0.22479988]
[1732999086501,0.002,96959.0,96958.0,0.19127976]
[1732999086897,0.002,96959.0,96958.0,0.21190675]
[1732999087598,0.002,96959.0,96958.0,0.24624989]
[1732999087995,0.002,96959.0,96958.0,0.23898073]
[1732999088199,0.002,96959.0,96958.0,0.20546057]
[1732999088506,0.002,96959.0,96958.0,0.25140676]
[1732999088906,0.002,96959.0,96958.0,0.24496058]
[1732999089203,0.002,96959.0,96958.0,0.2505838]
[1732999090100,0.002,96959.0,96958.0,0.25380688]
[1732999090608,0.002,96959.0,96958.0,0.27959159]
[1732999091201,0.002,96959.0,96958.0,0.27959152]
[1732999091702,0.002,96959.0,96958.0,0.27959151]
[1732999094799,0.002,96959.0,96958.0,0.26476543]
[1732999095000,0.002,96959.0,96958.0,0.27959164]
[1732999098617,0.002,96959.0,96958.0,0.25380692]
[1732999099207,0.002,96959.0,96958.0,0.22028678]
[1732999099407,0.002,96959.0,96958.0,0.25380692]
[1732999104813,0.002,96959.0,96958.0,0.27959166]
[1732999105510,0.002,96959.0,96958.0,0.26476547]
[1732999105712,0.002,96959.0,96958.0,0.28926095]
[1732999107313,0.001,96959.0,96958.0,0.28926095]
[1732999107514,0.002,96959.0,96958.0,0.28926095]
[1732999109123,0.002,96959.0,96958.0,0.289261]
[1732999109426,0.002,96959.0,96958.0,0.27959173]
[1732999110024,0.002,96959.0,96958.0,0.25896474]
[1732999110212,0.001,96959.0,96958.0,0.25896474]
[1732999110410,0.002,96959.0,96958.0,0.25896474]
[1732999111315,0.002,96959.0,96958.0,0.13768474]
[1732999111517,0.002,96959.0,96958.0,0.25892474]
[1732999115019,0.002,96959.0,96958.0,0.44429874]
[1732999117032,0.002,96959.0,96958.0,0.44512262]
[1732999117324,0.002,96959.0,96958.0,0.44429874]
[1732999119419,0.002,96959.0,96958.0,0.44512262]
[1732999119821,0.002,96959.0,96958.0,0.42947294]
[1732999120123,0.002,96959.0,96958.0,0.25974913]
[1732999120325,0.002,96959.0,96958.0,0.44429926]
[1732999120534,0.002,96959.0,96958.0,0.25892526]
[1732999123025,0.002,96959.0,96958.0,0.2589251]
[1732999123424,0.002,96959.0,96958.0,0.25892506]
[1732999125744,0.002,96959.0,96958.0,0.13768506]
[1732999126035,0.002,96959.0,96958.0,0.25892506]
[1732999127033,0.002,96959.0,96958.0,0.25892529]
[1732999127926,0.002,96959.0,96958.0,0.19961991]
[1732999128125,0.002,96959.0,96958.0,0.25892598]
[1732999130538,0.002,96959.0,96958.0,0.25892596]
[1732999134130,0.002,96959.0,96958.0,0.25892535]
[1732999139545,0.002,96959.0,96958.0,0.25974926]
[1732999139945,0.002,96959.0,96958.0,0.25892535]
[1732999140139,0.002,96959.0,96958.0,0.25974926]
[1732999140955,0.002,96959.0,96958.0,0.25892535]
[1732999141141,0.002,96959.0,96958.0,0.25974925]
[1732999141343,0.002,96959.0,96958.0,0.25892535]
[1732999142633,0.002,96959.0,96958.0,0.25892552]
[1732999143236,0.002,96959.0,96958.0,0.25974942]
[1732999143638,0.002,96959.0,96958.0,0.25892552]
[1732999143838,0.002,96959.0,96958.0,0.24409917]
[1732999144032,0.002,96959.0,96958.0,0.25892545]